Workbook

Sheet Landkreis Bautzen
A1: LANDKREIS BAUTZEN | B1: 2027
B2: 1 | C2: 125%*
A3: Bautzener Land (Cunewalde, Doberschau-Gaußig, Göda, Großdubrau, Großpostwitz/O.L., Hochkirch, Königswartha, Kubschütz, Malschwitz, Neschwitz, Obergurig, Puschwitz, Radibor, Schirgiswalde-Kirschau, Sohland a.d. Spree, Weißenberg, Wilthen ) | B3: 371.88 | C3: =B3*1.25 -> 464.85
A4: Bischofswerdaer Land (Burkau, Demitz-Thumitz, Frankenthal, Großhartau, Großröhrsdorf, Lichtenberg, Neukirch/Lausitz, Ohorn, Pulsnitz, Rammenau, Schmölln-Putzkau, Steinigtwolmsdorf) | B4: 429.12 | C4: 536.4
A5: Dresdener Land (Arnsdorf, Ottendorf-Okrilla, Radeberg, Wachau) | B5: 420.71 | C5: 525.8875
A6: Hoyerswerdaer Land (Bernsdorf, Elsterheide, Lauta, Lohsa, Spreetal, Wittichenau) | B6: 422.33 | C6: 527.9125
A7: Kamenzer Land (Crostwitz, Elstra, Großnaundorf, Haselbachtal, Königsbrück, Laußnitz, Nebelschütz, Neukirch, Oßling, Panschwitz-Kuckau, Räckelwitz, Ralbitz-Rosenthal. Schwepnitz, Steina) | B7: 420.2 | C7: 525.25
A8: Stadt Bautzen | B8: 405.12 | C8: 506.4
A9: Stadt Bischofswerda | B9: 388.41 | C9: 485.5125
A10: Stadt Hoyerswerda | B10: 353.93 | C10: 442.4125
A11: Stadt Kamenz | B11: 417.56 | C11: 521.95
A13: * Voraussetzung zur Berücksichtigung der 125%-Grenze ist die Ausweisung zusätzlicher Kosten nach § 42a Abs. 5 Satz 4 SGXII im Vertrag über die Unterkunftskosten, wie Möblierungszuschlag, Strom usw.

Sheet Erzgebirgskreis
A1: ERZGEBIRGSKREIS | B1: 2027
B2: 1 | C2: 125%*
A3: Region A (Amtsberg, Aue-Bad Schlema, Auerbach, Burkhardtsdorf, Gornau, Gornsdorf, Hohndorf, Jahnsdorf, Lauter-Bernsbach, Lößnitz, Lugau, Neukirchen, Niederdorf, Niederwürschnitz, Oelsnitz, Schneeberg, Schwarzenberg, Stollberg, Thalheim, Zschopau) | B3: 376.68 | C3: =B3*1.25 -> 470.85
A4: Region B (Bockau, Breitenbrunn, Eibenstock, Johanngeorgenstadt, Schönheide, Stützengrün, Zschorlau) | B4: 374.98 | C4: =B4*1.25 -> 468.725
A5: Region C (Crottendorf, Drebach, Ehrenfriedersdorf, Elterlein, Gelenau, Geyer, Grünhain-Beierfeld, Oberwiesenthal, Raschau-Markersbach, Scheibenberg, Schlettau, Sehmatal, Tannenberg, Thum, Zwönitz) | B5: 372.19 | C5: 465.2375
A6: Region D (Bärenstein, Deutschneudorf, Großolbersdorf, Großrückerswalde, Grünhainichen, Heidersdorf, Jöhstadt, Königswalde, Marienberg, Mildenau, Olbernhau, Pfaffroda, Pockau-Lengefeld, Seiffen, Thermalbad Wiesenbad, Wolkenstein) | B6: 373.82 | C6: 467.275
A7: Region E (Annaberg-Buchholz) | B7: 389.82 | C7: 487.275
A9: * Voraussetzung zur Berücksichtigung der 125%-Grenze ist die Ausweisung zusätzlicher Kosten nach § 42a Abs. 5 Satz 4 SGXII im Vertrag über die Unterkunftskosten, wie Möblierungszuschlag, Strom usw.

Sheet Landkreis Görlitz
A1: LANDKREIS GÖRLITZ | B1: 2027
B2: 1 | C2: 125%*
A3: Planungsraum 1: Weißwasser Land (Bad Muskau, Boxberg/O.L., Gablenz, Groß Düben, Krauschwitz i.d. O.L., Kreba-Neudorf, Rietschen, Schleife, Trebendorf, Weißkeißel) | B3: 389.44 | C3: =B3*1.25 -> 486.8
A4: Planungsraum 1Z: Weißwasser Stadt | B4: 375.16 | C4: =B4*1.25 -> 468.95
A5: Planungsraum 2: Niesky Land (Hähnichen, Hohendubrau, Horka, Kodersdorf, Königshain, Markersdorf, Mücka, Neißeaue, Quitzdorf am See, Stadt Reichenbach/O.L., Stadt Rothenburg/O.L., Schöpstal, Vierkirchen, Waldhufen) | B5: 391.29 | C5: 489.1125
A6: Planungsraum 2Z: Niesky Stadt | B6: 436.7 | C6: 545.875
A7: Planungsraum 3: Stadt Görlitz | B7: 405.03 | C7: 506.2875
A8: Planungsraum 4: Löbau Land (Beiersdorf, Dürrhennersdorf, Ebersbach-Neugersdorf, Großschweidnitz, Kottmar, Lawalde, Neusalza-Spremberg, Oppach, Rosenbach, Schönbach, Seifhennersdorf) | B8: 372.3 | C8: 465.375
A9: Planungsraum 4Z: Löbau Stadt | B9: 429.85 | C9: 537.3125
A10: Planungsraum 5: Zittau Land (Bernstadt a.d. Eigen, Bertsdorf-Hörnitz, Großschönau, Hainewalde, Herrnhut, Kurort Jonsdorf, Leutersdorf, Mittelherwigsdorf, Oderwitz, Olbersdorf, Ostritz, Oybin, Schönau-Berzdorf a.d. Eigen) | B10: 409.15 | C10: 511.4375
A11: Planungsraum 5Z: Zittau Stadt | B11: 406.8 | C11: 508.5
A13: * Voraussetzung zur Berücksichtigung der 125%-Grenze ist die Ausweisung zusätzlicher Kosten nach § 42a Abs. 5 Satz 4 SGXII im Vertrag über die Unterkunftskosten, wie Möblierungszuschlag, Strom usw.

Sheet Landkreis Leipzig
A1: LANDKREIS LEIPZIG | B1: 2027
B2: 1 | C2: 125%*
A3: LK Ost (Bennewitz, Borsdorf, Brandis, Lossatal, Machern, Thallwitz, Trebsen, Wurzen) | B3: 386.68 | C3: =B3*1.25 -> 483.35
A4: Markranstädt | B4: 435.11 | C4: =B4*1.25 -> 543.8875
A5: Markkleeberg | B5: 441.8 | C5: 552.25
A6: Grimma | B6: 391.47 | C6: 489.3375
A7: Borna | B7: 394.83 | C7: 493.5375
A8: LK Mitte (Bad Lausick, Belgershain,Colditz, Frohburg, Geithain, Kitzscher, Naunhof, Otterwisch, Parthenstein) | B8: 397.03 | C8: 496.2875
A9: LK West (Böhlen, Elstertrebnitz, Groitzsch, Großpösna, Neukieritzsch, Pegau, Regis-Breitingen, Rötha, Zwenkau) | B9: 392.05 | C9: 490.0625
A11: * Voraussetzung zur Berücksichtigung der 125%-Grenze ist die Ausweisung zusätzlicher Kosten nach § 42a Abs. 5 Satz 4 SGXII im Vertrag über die Unterkunftskosten, wie Möblierungszuschlag, Strom usw.

Sheet Landkreis Meißen
A1: LANDKREIS MEIßEN | B1: 2027
B2: 1 | C2: 125%*
A3: Vergleichsraum 1: Stadt Riesa | B3: 377.09 | C3: =B3*1.25 -> 471.3625
A4: Vergleichsraum 2: Stadt Coswig, Stadt Meißen | B4: 394.82 | C4: 493.525
A5: Vergleichsraum 3: Stadt Großenhain | B5: 370.5 | C5: 463.125
A6: Vergleichsraum 4: Stadt Radebeul | B6: 425.7 | C6: 532.125
A7: Vergleichsraum 5: Dresdner Umland (Gem. Moritzburg, Gem. Niederau, Stadt Radeburg, Gem. Weinböhla) | B7: 394.3 | C7: 492.875
A8: Vergleichsraum 6: Erweiterte Großenhainer Pflege (Gem. Diera-Zehren [rechtselbisch], Gem. Ebersbach, Gem. Priestewitz, VG Schönfeld (Schönfeld, Gem. Lampertswalde), VG Thiendorf (Thiendorf, Tauscha) | B8: 331.29 | C8: 414.1125
A9: Vergleichsraum 7: Lommatzscher Pflege (Gem. Diera-Zehren [linkselbisch], Gem. Hirschstein, Gem. Käbschütztal, Gem. Klipphausen, Stadt Lommatzsch, Stadt Nossen, Gem. Stauchitz) | B9: 358.59 | C9: 448.2375
A10: Vergleichsraum 8: Nord-West (Stadt Gröditz, Gem. Nünchritz, Gem. Glaubitz, Gem. Röderaue, Gem. Wülknitz, Stadt Strehla, Gem. Zeithain) | B10: 359.13 | C10: 448.9125
A12: * Voraussetzung zur Berücksichtigung der 125%-Grenze ist die Ausweisung zusätzlicher Kosten nach § 42a Abs. 5 Satz 4 SGXII im Vertrag über die Unterkunftskosten, wie Möblierungszuschlag, Strom usw.

Sheet Landkreis Mittelsachsen
A1: LANDKREIS MITTELSACHSEN | B1: 2027
B2: 1 | C2: 125%*
A3: Freiberg | B3: 396.51 | C3: =B3*1.25 -> 495.6375
A4: Mittelbereich Freiberg (Bobritzsch-Hilbersdorf, Stadt Brand-Erbisdorf, Eppendorf, Stadt Frauenstein, Großhartmannsdorf, Stadt Großschirma, Halsbrücke, VG Lichtenberg/Erzgebirge (Lichtenberg, Weißborn), Mulda/Sa., Neuhausen/Erzgeb., Oberschöna, Stadt Oederan, Rechenberg-Bienenmühle, Reinsberg und VG Sayda (Sayda und Dorfchemnitz)) | B4: 373.3 | C4: =B4*1.25 -> 466.625
A5: Mittelbereich Döbeln (Stadt Döbeln, Großweitzschen, Stadt Hartha, Jahnatal, Stadt Leisnig, Stadt Roßwein, Striegistal und Stadt Waldheim) | B5: 392.84 | C5: 491.05
A6: Mittelbereich Mittweida (Erlau, Stadt Geringswalde, Stadt Hainichen, Königshain-Wiederau, Kriebstein, VG Mittweida (Mittweida, Altmittweida), VG Rochlitz (Rochlitz, Königsfeld, Seelitz, Zettlitz), Rossau und Wechselburg) | B6: 387.18 | C6: 483.975
A7: Umland Chemnitz (Stadt Augustusburg, VG Burgstädt (Burgstädt, Mühlau, Taura), Claußnitz, Stadt Flöha, Stadt Frankenberg, Hartmannsdorf, Leubsdorf, Lichtenau, Stadt Lunzenau, Niederwiesa und Stadt Penig) | B7: 384.37 | C7: 480.4625
A9: * Voraussetzung zur Berücksichtigung der 125%-Grenze ist die Ausweisung zusätzlicher Kosten nach § 42a Abs. 5 Satz 4 SGXII im Vertrag über die Unterkunftskosten, wie Möblierungszuschlag, Strom usw.

Sheet Landkreis Nordsachsen
A1: LANDKREIS NORDSACHSEN | B1: 2027
B2: 1 | C2: 125%*
A3: Vergleichsraum 01 (Jesewitz, Krostitz, Rackwitz, Schkeuditz, Taucha) | B3: 424.62 | C3: =B3*1.25 -> 530.775
A4: Vergleichsraum 02 (Bad Düben, Delitzsch, Löbnitz, Schönwölkau, Wiedermar, Zschepplin) | B4: 339.99 | C4: =B4*1.25 -> 424.9875
A5: Vergleichsraum 03 (Arzberg, Beilrode, Belgern-Schildau, Cavertitz, Dahlen, Doberschütz, Dommitzsch, Dreiheide, Eilenburg, Elsnig, Laußig, Liebschützberg, Mockrehna, Mügeln, Naundorf, Oschatz, Torgau, Trossin, Wermsdorf) | B5: 380.45 | C5: 475.5625
A7: * Voraussetzung zur Berücksichtigung der 125%-Grenze ist die Ausweisung zusätzlicher Kosten nach § 42a Abs. 5 Satz 4 SGXII im Vertrag über die Unterkunftskosten, wie Möblierungszuschlag, Strom usw.

Sheet Landkreis Sächs.Schweiz Osterzg
A1: LANDKREIS SÄCHS. SCHWEIZ OSTERZGEBIRGE | B1: 2027
B2: 1 | C2: 125%*
A3: Vergleichsraum 1 (Bannewitz, Stadt Freital, Stadt Wilsdruff) | B3: 419.31 | C3: =B3*1.25 -> 524.1375
A4: Vergleichsraum 2 (Kreischa, Stadt Rabenau, Stadt Dippoldiswalde, VG Dohna-Müglitztal (Dohna, Müglitztal), VG Klingenberg (Klingenberg, Hartmannsdorf-Reichenau), VG Tharandt (Tharandt, Dorfhain)) | B4: 433.81 | C4: =B4*1.25 -> 542.2625
A5: Vergleichsraum 3 (Stadt Glashütte, VG Altenberg (Altenberg, Hermsdorf), VG Bad Gottleuba-Berggießhübel (Bad Gottleuba-Berggießhübel, Bahretal, Liebstadt), VG Königstein (Königstein, Gohrisch, Rathen, Rosenthalö-Bielatal, Struppen)) | B5: 413.29 | C5: 516.6125
A6: Vergleichsraum 4 (Stadt Heidenau, VG Pirna (Pirna, Dohma)) | B6: 418.34 | C6: 522.925
A7: Vergleichsraum 5 (Dürrröhrsdorf-Dittersbach, Stadt Stolpen, VG Lohmen (Lohmen, Stadt Wehlen), Stadt Hohnstein) | B7: 346.41 | C7: 433.0125
A8: Vergleichsraum 6 (Stadt Neustadt i.Sa., Stadt Sebnitz, VG Bad Schandau (Bad Schandau, Rathmannsdorf, Reinhardtsdorf-Schöna)) | B8: 370.72 | C8: 463.4
A10: * Voraussetzung zur Berücksichtigung der 125%-Grenze ist die Ausweisung zusätzlicher Kosten nach § 42a Abs. 5 Satz 4 SGXII im Vertrag über die Unterkunftskosten, wie Möblierungszuschlag, Strom usw.

Sheet Vogtlandkreis
A1: VOGTLANDKREIS | B1: 2027
B2: 1 | C2: 125%*
A3: Vergleichsraum Plauen (Stadt Plauen, Stadt Elsterberg, Verwaltungsverband Jägerswald (Bergen, Theuma, Tirpersdorf, Werda), Stadt Pausa-Mühltroff, Pöhl, Rosenbach, Verwaltungsgemeinschaft Treuen (Neuensalz, Treuen), Weischlitz) | B3: 320.27 | C3: =B3*1.25 -> 400.3375
A4: Vergleichsraum Oelsnitz (Stadt Adorf/Vogtl., Bad Brambach, Stadt Bad Elster, Stadt Markneukirchen; Verwaltungsgemeinschaft Oelsnitz (Bösenbrunn, Eichigt, Oelsnitz, Triebel), Verwaltungsgemeinschaft Schöneck/Mühlental (Schöneck, Mühlental)) | B4: 321.06 | C4: =B4*1.25 -> 401.325
A5: Vergleichsraum Auerbach (Stadt Auerbach/Vogtl., Ellefeld, Verwaltungsgemeinschaft Falkenstein (Grünbach, Neustadt, Falkenstein), Stadt Klingenthal, Stadt Lengenfeld, Muldenhammer, Stadt Rodewisch, Steinberg/Vogl.) | B5: 326.84 | C5: 408.55
A6: Vergleichsraum Reichenbach (Verwaltungsgemeinschaft Netzschkau-Limbach (Limbach, Netzschkau), Neumark, Verwaltungsgemeinschaft Reichenbachn (Heinsdorfergrund, Reichenbach)) | B6: 328.35 | C6: 410.4375
A8: * Voraussetzung zur Berücksichtigung der 125%-Grenze ist die Ausweisung zusätzlicher Kosten nach § 42a Abs. 5 Satz 4 SGXII im Vertrag über die Unterkunftskosten, wie Möblierungszuschlag, Strom usw.

Sheet Landkreis Zwickau
A1: LANDKREIS ZWICKAU | B1: 2027
B2: 1 | C2: 125%*
A3: Vergleichsraum 1 (Stadt Zwickau) | B3: 376.57 | C3: =B3*1.25 -> 470.7125
A4: Vergleichsraum 2 (Fraureuth, Werdau, Langenbernsdorf, Neukirchen, Crimmitschau) | B4: 372.54 | C4: =B4*1.25 -> 465.675
A5: Vergleichsraum 3 (Dennheritz, Meerane, Schönberg, Oberwiera, Waldenburg, Remse, Glauchau) | B5: 370.15 | C5: 462.6875
A6: Vergleichsraum 4 (Niederfrohna, Limbach-Oberfrohna, Callenberg, Hohenstein-Ernstthal, Oberlungwitz, St. Egidien, Bernsdorf, Gersdorf, Lichtenstein, Mülsen) | B6: 366.77 | C6: 458.4625
A7: Vergleichsraum 5 (Reinsdorf, Wildenfels, Hartenstein, Langenweißbach, Wilkau-Haßlau, Kirchberg, Hartmannsdorf, Crinitzberg, Hirschfeld, Lichtentanne) | B7: 381.1 | C7: 476.375
A9: * Voraussetzung zur Berücksichtigung der 125%-Grenze ist die Ausweisung zusätzlicher Kosten nach § 42a Abs. 5 Satz 4 SGXII im Vertrag über die Unterkunftskosten, wie Möblierungszuschlag, Strom usw.

Sheet Stadt Chemnitz
A1: STADT CHEMNITZ | B1: 2027
B2: 1 | C2: 125%*
B3: 389.47 | C3: =B3*1.25 -> 486.8375
A5: * Voraussetzung zur Berücksichtigung der 125%-Grenze ist die Ausweisung zusätzlicher Kosten nach § 42a Abs. 5 Satz 4 SGXII im Vertrag über die Unterkunftskosten, wie Möblierungszuschlag, Strom usw.

Sheet Stadt Leipzig
A1: STADT LEIPZIG | B1: 2027
B2: 1 | C2: 125%*
B3: 427.36 | C3: =B3*1.25 -> 534.2
A5: * Voraussetzung zur Berücksichtigung der 125%-Grenze ist die Ausweisung zusätzlicher Kosten nach § 42a Abs. 5 Satz 4 SGXII im Vertrag über die Unterkunftskosten, wie Möblierungszuschlag, Strom usw.

Sheet Stadt Dresden
A1: STADT DRESDEN | B1: 2027
B2: 1 | C2: 125%*
B3: 463.19 | C3: =B3*1.25 -> 578.9875
A5: * Voraussetzung zur Berücksichtigung der 125%-Grenze ist die Ausweisung zusätzlicher Kosten nach § 42a Abs. 5 Satz 4 SGXII im Vertrag über die Unterkunftskosten, wie Möblierungszuschlag, Strom usw.
